bitfinex/quotes_SOLUSD_20230113
["timestamp","ask_amount","ask_price","bid_price","bid_amount"]
[1673578419978,621.33733899,16.47,16.45,12.59]
[1673578420375,40.46683801,16.466,16.45,12.59]
[1673578421452,10.0,16.464,16.45,12.59]
[1673578421640,0.96,16.463,16.45,12.59]
[1673578421850,0.96,16.463,16.45,11.09]
[1673578428174,10.0,16.465,16.45,11.09]
[1673578429881,0.96,16.464,16.45,11.09]
[1673578430612,0.96,16.464,16.451,1.92]
[1673578439015,0.96,16.464,16.45,11.09]
[1673578439335,17.96,16.464,16.45,11.09]
[1673578440278,12.51,16.46,16.448,114.577]
[1673578440495,0.96,16.459,16.448,114.577]
[1673578440702,17.96,16.459,16.448,114.577]
[1673578441227,17.96,16.459,16.446,20.0]
[1673578441443,10.0,16.458,16.444,20.0]
[1673578441654,0.96,16.457,16.444,20.0]
[1673578448994,10.0,16.458,16.445,0.96]
[1673578449326,62.86,16.46,16.445,0.96]
[1673578449528,62.86,16.46,16.445,10.96]
[1673578449848,62.86,16.46,16.446,20.0]
[1673578450371,62.86,16.46,16.444,20.0]
[1673578450569,10.0,16.459,16.445,0.96]
[1673578451337,10.0,16.459,16.444,20.0]
[1673578451338,17.96,16.458,16.444,20.0]
[1673578451539,10.0,16.457,16.443,110.6483]
[1673578451754,20.96,16.456,16.441,116.6187]
[1673578451952,10.0,16.455,16.441,116.6187]
[1673578452364,0.96,16.454,16.441,116.6187]
[1673578452576,10.0,16.453,16.441,116.6187]
[1673578452792,0.96,16.452,16.441,116.6187]
[1673578454374,12.51,16.45,16.441,116.6187]
[1673578455955,0.96,16.452,16.441,116.6187]
[1673578457222,10.0,16.453,16.441,116.6187]
[1673578457410,10.0,16.456,16.442,20.0]
[1673578457728,22.59,16.46,16.443,10.0]
[1673578458056,22.59,16.46,16.444,20.0]
[1673578458583,22.59,16.46,16.445,0.96]
[1673578458769,0.96,16.458,16.445,0.96]
[1673578458985,22.59,16.46,16.445,0.96]
[1673578458986,22.59,16.46,16.446,0.96]
[1673578459212,22.59,16.46,16.447,0.96]
[1673578459745,22.59,16.46,16.446,20.96]
[1673578459953,22.59,16.46,16.447,0.96]
[1673578460477,0.96,16.458,16.447,0.96]
[1673578460677,0.96,16.458,16.447,115.1129]
[1673578460889,0.96,16.458,16.448,20.0]
[1673578461527,22.59,16.46,16.448,20.0]
[1673578462481,0.96,16.459,16.448,20.0]
[1673578466482,10.96,16.459,16.448,20.0]
[1673578472567,0.96,16.459,16.448,20.0]
[1673578472778,0.96,16.459,16.449,10.0]
[1673578473412,0.96,16.459,16.448,30.0]
[1673578473936,0.96,16.459,16.448,20.0]
[1673578482748,22.59,16.46,16.448,20.0]
[1673578483391,22.59,16.46,16.449,0.96]
[1673578483916,22.59,16.46,16.448,20.0]
[1673578484112,0.96,16.459,16.448,20.0]
[1673578486623,22.59,16.46,16.448,20.0]
[1673578486833,22.59,16.46,16.449,0.96]
[1673578494320,40.46683801,16.462,16.449,0.96]
[1673578494533,30.46683801,16.462,16.449,10.96]
[1673578494720,30.46683801,16.462,16.45,0.96]
[1673578495361,30.46683801,16.462,16.448,30.0]
[1673578495685,0.96,16.46,16.448,20.0]
[1673578495879,30.47,16.46,16.448,20.0]
[1673578496090,40.46683801,16.459,16.448,20.0]
[1673578496311,0.96,16.458,16.448,20.0]
[1673578496522,10.0,16.457,16.448,20.0]
[1673578496742,0.96,16.456,16.448,20.0]
[1673578500310,0.96,16.457,16.448,20.0]
[1673578500520,0.96,16.458,16.448,20.0]
[1673578500723,0.96,16.458,16.434,200.0750858]
[1673578500724,30.46683801,16.456,16.434,200.0750858]
[1673578501038,10.96,16.455,16.437,10.0]
[1673578502731,10.96,16.455,16.439,0.96]
[1673578509366,0.96,16.455,16.439,0.96]
[1673578509673,55.71995869,16.459,16.44,12.6]
[1673578509892,55.71995869,16.459,16.442,10.0]
[1673578509893,10.0,16.459,16.442,10.0]
[1673578510079,10.0,16.459,16.443,253.6745]
[1673578510290,22.53,16.46,16.444,10.0]
[1673578510604,22.53,16.46,16.445,20.0]
[1673578510930,22.53,16.46,16.446,0.96]
[1673578511136,10.0,16.459,16.445,20.0]
[1673578511866,0.96,16.458,16.445,20.0]
[1673578512099,22.53,16.46,16.445,20.0]
[1673578512409,0.96,16.459,16.446,0.96]
[1673578512825,10.96,16.459,16.446,0.96]
[1673578515245,10.96,16.459,16.445,20.0]
[1673578515571,10.96,16.459,16.444,20.0]
[1673578515754,10.96,16.459,16.445,1.92]
[1673578516069,10.96,16.459,16.444,20.0]
[1673578517348,10.96,16.459,16.445,1.92]
[1673578518511,30.46683801,16.458,16.444,20.0]
[1673578518715,10.96,16.457,16.444,20.0]
[1673578530803,0.96,16.457,16.444,20.0]
[1673578531019,0.96,16.458,16.445,0.96]
[1673578532595,0.96,16.458,16.445,10.96]
[1673578533227,0.96,16.458,16.446,20.0]
[1673578533436,0.96,16.458,16.445,0.96]
[1673578533747,49.26982536,16.459,16.446,0.96]
[1673578534156,49.26982536,16.459,16.447,10.96]
[1673578534492,49.26982536,16.459,16.448,20.96]
[1673578534804,49.26982536,16.459,16.448,20.0]
[1673578535210,0.96,16.458,16.448,20.0]
[1673578535629,0.96,16.458,16.446,20.0]
[1673578535857,0.96,16.458,16.447,1.92]
[1673578536043,49.26982536,16.459,16.447,1.92]
[1673578536472,10.0,16.462,16.447,1.92]
[1673578536689,0.96,16.461,16.447,1.92]
[1673578536898,0.96,16.461,16.446,20.0]
[1673578537228,10.0,16.46,16.446,20.0]
[1673578537545,0.96,16.459,16.446,20.0]
[1673578544153,49.26982536,16.461,16.446,20.0]
[1673578544367,0.96,16.46,16.447,0.96]
[1673578546155,10.96,16.46,16.447,0.96]
[1673578546376,10.96,16.46,16.448,0.96]
[1673578546896,10.96,16.46,16.449,0.96]
[1673578547302,10.0,16.46,16.45,0.96]
[1673578549526,22.59,16.46,16.45,0.96]
[1673578550549,12.59,16.46,16.45,0.96]
[1673578550779,10.0,16.478,16.451,10.0]
[1673578550985,10.0,16.478,16.46,62.9]
[1673578551307,10.0,16.478,16.462,10.0]
[1673578551617,10.0,16.478,16.463,20.0]
[1673578552337,10.0,16.478,16.464,1.92]
[1673578553619,10.0,16.478,16.464,21.92]
[1673578554669,0.96,16.477,16.464,21.92]
[1673578555102,0.96,16.477,16.464,20.0]
[1673578555409,10.0,16.475,16.461,232.9584]
[1673578555596,10.0,16.473,16.461,116.1025]
[1673578555812,17.96,16.472,16.461,116.1025]
[1673578558548,0.96,16.472,16.461,116.1025]
[1673578560142,17.96,16.472,16.461,116.1025]
[1673578561414,10.0,16.475,16.461,116.1025]
[1673578562640,0.96,16.474,16.461,116.1025]
[1673578563082,17.96,16.474,16.461,116.1025]
[1673578564324,12.59,16.47,16.461,116.1025]
[1673578564741,0.96,16.469,16.461,116.1025]
[1673578565284,12.59,16.47,16.461,116.1025]
[1673578565807,0.96,16.469,16.461,116.1025]
[1673578566525,12.59,16.47,16.461,116.1025]
[1673578571373,0.96,16.469,16.461,116.1025]
[1673578574640,0.96,16.469,16.45,62.83]
[1673578574840,0.96,16.469,16.454,136.3456]
[1673578575693,0.96,16.469,16.455,10.0]
[1673578575902,0.96,16.469,16.456,20.0]
[1673578576621,12.59,16.47,16.456,20.0]
[1673578576833,12.59,16.47,16.457,0.96]
[1673578577354,12.59,16.47,16.457,10.96]
[1673578577785,12.59,16.47,16.458,20.0]
[1673578578317,0.96,16.469,16.458,20.0]
[1673578584853,0.96,16.469,16.456,20.0]
[1673578589246,17.96,16.469,16.456,20.0]
[1673578589457,17.96,16.469,16.455,20.0]
[1673578589670,48.42683801,16.469,16.455,20.0]
[1673578589884,10.0,16.468,16.455,20.0]
[1673578590090,17.96,16.467,16.455,20.0]
[1673578590314,10.0,16.466,16.455,20.0]
[1673578590634,17.96,16.465,16.455,20.0]
[1673578591456,17.96,16.465,16.45,12.65]
[1673578592842,10.0,16.464,16.45,12.65]
[1673578593060,0.96,16.463,16.45,12.65]
[1673578594223,0.96,16.463,16.448,117.5229]
[1673578595580,0.96,16.463,16.449,10.0]
[1673578598525,12.58,16.46,16.448,117.5229]
[1673578598942,27.96,16.459,16.448,117.5229]
[1673578599155,10.0,16.458,16.448,117.5229]
[1673578599363,0.96,16.457,16.448,117.5229]
[1673578599576,17.96,16.457,16.448,117.5229]
[1673578599890,0.96,16.457,16.448,117.5229]
[1673578604203,0.96,16.457,16.443,114.7637]
[1673578604418,17.96,16.457,16.444,20.0]
[1673578606311,0.96,16.457,16.445,0.96]
[1673578606515,0.96,16.457,16.445,10.96]
[1673578606745,0.96,16.457,16.447,10.0]
[1673578607038,12.58,16.46,16.447,10.0]
[1673578607256,12.58,16.46,16.448,20.0]
[1673578607995,12.58,16.46,16.448,138.0909]
[1673578608309,0.96,16.459,16.448,138.0909]
[1673578610907,12.58,16.46,16.449,10.0]
[1673578612298,0.96,16.459,16.449,10.0]
[1673578615450,10.0,16.464,16.449,10.0]
[1673578615648,0.96,16.463,16.449,10.0]
[1673578618093,0.96,16.463,16.448,138.0909]
[1673578620409,17.96,16.463,16.448,138.0909]
[1673578622827,17.96,16.463,16.449,10.0]
[1673578629016,0.96,16.463,16.449,10.0]
[1673578640402,0.96,16.463,16.448,138.0909]
[1673578640581,0.96,16.463,16.449,11.92]
[1673578641130,0.96,16.463,16.45,10.0]
[1673578653324,40.46683801,16.462,16.448,138.0909]
[1673578653531,17.96,16.461,16.448,138.0909]
[1673578654414,12.58,16.46,16.448,138.0909]
[1673578654627,0.96,16.459,16.448,138.0909]
[1673578663122,0.96,16.459,16.449,10.0]
[1673578667035,0.96,16.46,16.449,10.0]
[1673578669231,0.96,16.46,16.448,138.0909]
[1673578674083,10.96,16.46,16.448,138.0909]
[1673578674274,17.0,16.459,16.448,138.0909]
[1673578674479,0.96,16.458,16.448,138.0909]
[1673578675530,0.96,16.459,16.448,138.0909]
[1673578681863,17.96,16.459,16.448,138.0909]
[1673578685846,12.53,16.46,16.449,10.0]
[1673578686474,48.52385739,16.462,16.45,12.59]
[1673578686790,48.52385739,16.462,16.451,10.0]
[1673578687003,10.0,16.465,16.451,10.0]
[1673578687199,17.0,16.464,16.451,10.0]
[1673578687416,65.52385739,16.465,16.451,10.0]
[1673578687821,48.52385739,16.465,16.451,10.0]
[1673578688269,243.29889137,16.47,16.451,10.0]
[1673578688469,20.0,16.468,16.451,10.0]
[1673578689203,0.96,16.467,16.451,10.0]
[1673578689416,10.96,16.467,16.451,10.0]
[1673578689630,37.0,16.466,16.451,10.0]
[1673578689955,0.96,16.465,16.451,10.0]
[1673578691425,31.42683801,16.465,16.451,10.0]
[1673578692160,17.0,16.464,16.451,10.0]
[1673578692367,0.96,16.463,16.451,10.0]
[1673578705092,0.96,16.464,16.451,10.0]
[1673578705490,0.96,16.465,16.452,0.96]
[1673578709167,59.97178852,16.465,16.452,0.96]
[1673578710244,49.97178852,16.465,16.452,0.96]
[1673578715924,80.43862653,16.465,16.452,0.96]
[1673578716638,49.97178852,16.465,16.452,0.96]
[1673578718661,80.43862653,16.465,16.452,0.96]
[1673578719810,80.43862653,16.465,16.453,0.96]
[1673578720950,0.96,16.465,16.453,10.96]
[1673578721158,0.96,16.465,16.454,128.7588]
[1673578721377,0.96,16.465,16.455,10.0]
[1673578721602,0.96,16.465,16.454,128.7588]
[1673578721603,0.96,16.465,16.456,20.0]
[1673578722128,17.96,16.465,16.455,20.0]
[1673578725501,0.96,16.465,16.455,20.0]
[1673578725715,0.96,16.465,16.456,10.0]
[1673578725903,30.46683801,16.466,16.457,20.0]
[1673578726117,261.84384188,16.47,16.457,20.0]
[1673578726446,47.46683801,16.469,16.457,20.0]
[1673578726650,17.0,16.469,16.457,20.0]
[1673578727058,66.01178852,16.469,16.457,20.0]
[1673578727268,0.96,16.468,16.457,20.0]
[1673578728860,243.29889137,16.47,16.457,20.0]
[1673578730116,0.96,16.469,16.457,20.0]
[1673578730527,45.08405336,16.47,16.457,20.0]
[1673578730732,45.08405336,16.47,16.458,10.96]
[1673578730944,12.5,16.47,16.458,10.96]
[1673578731260,86.22361459,16.475,16.46,12.52]
[1673578731486,42.58405336,16.475,16.46,12.52]
[1673578732230,0.96,16.474,16.46,12.52]
[1673578733382,33.54405336,16.474,16.46,12.52]
[1673578734750,30.46683801,16.473,16.46,12.52]
[1673578734942,0.96,16.472,16.46,12.52]
[1673578735890,0.96,16.472,16.459,10.0]
[1673578738210,107.7482,16.479,16.461,10.0]
[1673578738531,107.7482,16.479,16.462,20.0]
[1673578738741,107.7482,16.479,16.463,10.0]
[1673578739275,107.7482,16.479,16.464,20.0]
[1673578739585,0.96,16.478,16.464,20.0]
[1673578740416,17.96,16.478,16.464,20.0]
[1673578740744,107.7482,16.479,16.464,20.0]
[1673578741169,107.7482,16.479,16.465,10.0]
[1673578741590,107.7482,16.479,16.466,111.4842]
[1673578741791,107.7482,16.479,16.466,131.4842]
[1673578742116,107.7482,16.479,16.467,10.0]
[1673578742510,107.7482,16.479,16.468,20.0]
[1673578742722,0.96,16.478,16.468,20.0]
[1673578744218,0.96,16.478,16.467,30.0]
[1673578745267,0.96,16.478,16.467,20.0]
[1673578747238,17.96,16.478,16.467,20.0]
[1673578749134,10.0,16.477,16.467,20.0]
[1673578749345,0.96,16.476,16.467,20.0]
[1673578749889,10.0,16.475,16.462,20.0]
[1673578750208,17.96,16.474,16.462,20.0]
[1673578751461,12.57,16.47,16.461,113.5119]
[1673578751863,0.96,16.469,16.461,113.5119]
[1673578753337,63.06985537,16.469,16.461,113.5119]
[1673578755458,62.10985537,16.469,16.461,113.5119]
[1673578755656,107.7482,16.479,16.462,20.0]
[1673578755858,10.0,16.478,16.462,20.0]
[1673578756072,10.0,16.477,16.462,20.0]
[1673578757143,10.0,16.477,16.463,10.0]
[1673578757339,10.0,16.478,16.464,20.0]
[1673578757548,142.56045336,16.479,16.464,20.0]
[1673578757757,142.56045336,16.479,16.465,1.92]
[1673578757964,142.56045336,16.479,16.465,11.92]
[1673578757965,34.81225336,16.479,16.465,11.92]
[1673578758178,10.0,16.483,16.466,20.0]
[1673578758403,10.0,16.485,16.467,1.92]
[1673578758825,10.0,16.485,16.467,11.92]
[1673578759165,10.0,16.485,16.468,20.0]
[1673578759349,10.0,16.485,16.469,10.96]
[1673578760296,10.0,16.485,16.47,118.8053]
[1673578761434,0.96,16.483,16.47,118.8053]
[1673578762187,0.96,16.483,16.471,10.0]
[1673578762718,0.96,16.484,16.471,10.0]
[1673578763346,65.27909137,16.483,16.47,118.8053]
[1673578763550,17.96,16.482,16.47,118.8053]
[1673578763884,34.81225336,16.481,16.47,118.8053]
[1673578764290,0.96,16.48,16.47,118.8053]
[1673578764915,34.81225336,16.48,16.47,118.8053]
[1673578765121,0.96,16.479,16.47,118.8053]
[1673578766190,34.81225336,16.48,16.47,118.8053]
[1673578766402,34.81225336,16.48,16.471,10.0]
[1673578767355,0.96,16.479,16.47,118.8053]
[1673578770716,34.81225336,16.48,16.471,10.0]
[1673578770929,34.81225336,16.48,16.47,118.8053]
[1673578771242,31.42683801,16.479,16.468,20.0]
[1673578771429,10.0,16.477,16.467,20.0]
[1673578771763,0.96,16.476,16.467,20.0]
[1673578772164,17.96,16.476,16.467,20.0]
[1673578773029,0.96,16.476,16.467,20.0]
[1673578773341,44.81225336,16.477,16.467,20.0]
[1673578773860,20.0,16.476,16.461,113.5119]
[1673578774499,10.96,16.475,16.461,113.5119]
[1673578777787,17.0,16.474,16.461,113.5119]
[1673578778088,0.96,16.473,16.461,113.5119]
[1673578779773,0.96,16.473,16.462,10.0]
[1673578779968,20.0,16.476,16.462,10.0]
[1673578780299,54.81225336,16.476,16.462,10.0]
[1673578780485,85.27909137,16.476,16.461,113.5119]
[1673578780695,10.0,16.475,16.461,113.5119]
[1673578780904,85.27909137,16.476,16.461,113.5119]
[1673578781116,54.81225336,16.476,16.462,1.92]
[1673578781340,54.81225336,16.476,16.462,11.92]
[1673578781853,54.81225336,16.476,16.462,10.0]
[1673578782593,0.96,16.475,16.462,10.0]
[1673578784071,54.81225336,16.476,16.462,10.0]
[1673578784269,34.81225336,16.476,16.463,1.92]
[1673578784484,113.6515,16.479,16.463,21.92]
[1673578784693,12.68,16.48,16.464,10.0]
[1673578785020,34.81225336,16.481,16.465,1.92]
[1673578785215,10.0,16.482,16.465,21.92]
[1673578785545,44.81225336,16.486,16.466,110.6236]
[1673578785775,10.0,16.486,16.468,10.0]
[1673578785960,40.46683801,16.485,16.468,10.0]
[1673578786280,40.46683801,16.485,16.469,1.92]
[1673578786687,10.0,16.485,16.469,1.92]
[1673578787110,44.81225336,16.485,16.47,112.9211]
[1673578787746,31.42683801,16.484,16.47,112.9211]
[1673578788167,66.23909137,16.484,16.47,112.9211]
[1673578788380,31.42683801,16.484,16.47,112.9211]
[1673578789001,0.96,16.484,16.47,112.9211]
[1673578789229,0.96,16.484,16.471,10.0]
[1673578790388,0.96,16.484,16.47,112.9211]
[1673578793113,35.77225336,16.484,16.47,112.9211]
[1673578798267,66.23909137,16.484,16.47,112.9211]
[1673578800268,12.57,16.48,16.47,112.9211]
[1673578800464,0.96,16.479,16.47,112.9211]
[1673578800672,31.42683801,16.479,16.47,112.9211]
[1673578801097,0.96,16.479,16.47,112.9211]
[1673578802458,47.38225336,16.48,16.47,112.9211]
[1673578803823,10.0,16.484,16.471,0.96]
[1673578804159,34.81225336,16.483,16.471,0.96]
[1673578804361,34.81225336,16.483,16.472,0.96]
[1673578806567,10.96,16.482,16.47,112.9211]
[1673578807092,34.81225336,16.481,16.47,112.9211]
[1673578807289,0.96,16.48,16.47,112.9211]
[1673578807712,35.77225336,16.48,16.47,112.9211]
[1673578809396,10.0,16.491,16.471,10.0]
[1673578809710,20.0,16.486,16.471,10.0]
[1673578810125,34.81225336,16.487,16.472,20.0]
[1673578810334,431.36463691,16.493,16.473,118.5146]
[1673578810542,116.9661,16.497,16.474,31.92]
[1673578810770,20.0,16.496,16.474,78.698448]
[1673578810987,10.0,16.495,16.475,10.0]
[1673578811193,10.0,16.495,16.476,20.96]
[1673578811410,10.0,16.495,16.477,10.0]
[1673578811600,10.0,16.495,16.478,20.0]
[1673578811831,10.0,16.495,16.479,0.96]
[1673578812261,10.0,16.495,16.479,227.9079]
[1673578812564,10.0,16.495,16.48,23.53]
[1673578812773,10.0,16.495,16.481,0.96]
[1673578812993,10.0,16.495,16.481,10.96]
[1673578813420,10.0,16.495,16.482,0.96]
[1673578813633,20.0,16.496,16.482,0.96]
[1673578814992,0.96,16.495,16.482,0.96]
[1673578815946,0.96,16.495,16.481,10.96]
[1673578816163,0.96,16.495,16.482,0.96]
[1673578816352,0.96,16.495,16.483,0.96]
[1673578817947,20.0,16.496,16.483,0.96]
[1673578818158,62.87,16.51,16.49,12.53]
[1673578818355,10.0,16.505,16.49,12.53]
[1673578818553,10.0,16.505,16.488,116.7801]
[1673578818554,12.57,16.5,16.488,116.7801]
[1673578818995,50.39241629,16.504,16.488,116.7801]
[1673578819415,50.39241629,16.504,16.489,1.92]
[1673578819612,10.0,16.503,16.489,1.92]
[1673578819820,10.0,16.503,16.49,109.5806]
[1673578821203,60.39241629,16.503,16.49,109.5806]
[1673578821394,0.96,16.502,16.49,109.5806]
[1673578823191,60.39241629,16.503,16.491,1.92]
[1673578823719,60.39241629,16.503,16.49,105.68153985]
[1673578824047,1.92,16.502,16.49,105.68153985]
[1673578824467,12.57,16.5,16.49,105.68153985]
[1673578825195,96.61459674,16.502,16.49,105.68153985]
[1673578825928,11.92,16.501,16.49,105.68153985]
[1673578826573,12.46,16.5,16.49,105.68153985]
[1673578826773,0.96,16.499,16.49,105.68153985]
[1673578826981,0.96,16.498,16.49,105.68153985]
[1673578827302,0.96,16.497,16.49,105.68153985]
[1673578828466,0.96,16.497,16.488,116.7801]
[1673578828989,0.96,16.498,16.488,116.7801]
[1673578829180,0.96,16.497,16.488,116.7801]
[1673578829623,51.23818045,16.497,16.488,116.7801]
[1673578829935,10.96,16.496,16.488,116.7801]
[1673578830364,51.23818045,16.495,16.488,116.7801]
[1673578830668,0.96,16.494,16.488,116.7801]
[1673578830877,49.37313765,16.495,16.484,115.4953]
[1673578831079,22.6,16.51,16.49,12.53]
[1673578831304,20.0,16.508,16.49,12.53]
[1673578831720,10.0,16.507,16.49,12.53]
[1673578831928,10.0,16.505,16.49,12.53]
[1673578832332,1.92,16.504,16.49,12.53]
[1673578835615,1.92,16.504,16.48,72.86]
[1673578835832,1.92,16.504,16.485,44.81799326]
[1673578836263,18.92,16.504,16.485,44.81799326]
[1673578836471,10.0,16.503,16.486,117.008]
[1673578836673,10.0,16.501,16.487,20.0]
[1673578836878,14.47,16.5,16.487,20.0]
[1673578837303,10.0,16.498,16.487,20.0]
[1673578837508,0.96,16.497,16.487,20.0]
[1673578837730,0.96,16.496,16.487,20.0]
[1673578838772,0.96,16.497,16.487,20.0]
[1673578839840,0.96,16.496,16.487,20.0]
[1673578840036,0.96,16.495,16.487,20.0]
[1673578846367,0.96,16.494,16.487,20.0]
[1673578846577,0.96,16.495,16.487,20.0]
[1673578846785,0.96,16.494,16.487,20.0]
[1673578846974,10.0,16.498,16.48,12.58]
[1673578847185,10.0,16.496,16.481,10.96]
[1673578847397,0.96,16.495,16.481,10.96]
[1673578847625,0.96,16.495,16.482,0.96]
[1673578848888,0.96,16.495,16.483,0.96]
[1673578849408,0.96,16.495,16.481,10.0]
[1673578849636,0.96,16.494,16.48,22.58]
[1673578849814,0.96,16.493,16.48,22.58]
[1673578852462,0.96,16.493,16.481,0.96]
[1673578855488,0.96,16.493,16.479,108.4333]
[1673578855701,0.96,16.492,16.479,108.4333]
[1673578855912,0.96,16.491,16.479,108.4333]
[1673578856748,10.0,16.496,16.48,0.96]
[1673578856966,0.96,16.495,16.48,10.0]
[1673578857279,0.96,16.494,16.48,10.0]
[1673578858035,0.96,16.494,16.479,108.4333]
[1673578858249,12.46,16.49,16.479,108.4333]
[1673578858450,0.96,16.489,16.479,108.4333]
[1673578858659,0.96,16.488,16.47,125.5811]
[1673578858871,10.96,16.487,16.47,125.5811]
[1673578859084,12.46,16.49,16.47,125.5811]
[1673578859397,0.96,16.489,16.47,125.5811]
[1673578859798,0.96,16.489,16.479,112.694]
[1673578860860,0.96,16.488,16.479,112.694]
[1673578861088,0.96,16.487,16.47,125.5811]
[1673578861486,0.96,16.486,16.47,125.5811]
[1673578861695,0.96,16.485,16.47,125.5811]
[1673578861908,0.96,16.484,16.47,125.5811]
[1673578862136,0.96,16.483,16.47,125.5811]
[1673578862763,10.0,16.488,16.47,125.5811]
[1673578862957,1.92,16.487,16.47,125.5811]
[1673578864333,10.0,16.495,16.471,34.81129229]
[1673578864774,10.0,16.495,16.479,10.0]
[1673578864948,10.0,16.495,16.479,126.0152]
[1673578865158,10.0,16.495,16.48,1.92]
[1673578865812,1.92,16.494,16.48,1.92]
[1673578866014,1.92,16.494,16.48,11.92]
[1673578866550,10.0,16.495,16.48,11.92]
[1673578867806,0.96,16.494,16.48,11.92]
[1673578868031,1.92,16.494,16.48,11.92]
[1673578868982,1.92,16.494,16.48,10.96]
[1673578870239,10.0,16.495,16.48,10.96]
[1673578870446,10.0,16.495,16.481,0.96]
[1673578870655,10.0,16.495,16.48,10.96]
[1673578871713,10.0,16.495,16.481,0.96]
[1673578872024,0.96,16.494,16.482,0.96]
[1673578872972,0.96,16.494,16.479,126.0152]
[1673578874335,0.96,16.494,16.48,1.92]
[1673578874654,0.96,16.494,16.48,11.92]
[1673578876016,0.96,16.493,16.479,126.0152]
[1673578876328,0.96,16.492,16.479,126.0152]
[1673578877170,0.96,16.491,16.479,126.0152]
[1673578877487,40.46683801,16.495,16.479,126.0152]
[1673578877804,1.92,16.494,16.479,126.0152]
[1673578880954,1.92,16.494,16.48,0.96]
[1673578882010,10.0,16.496,16.48,0.96]
[1673578882228,30.46683801,16.495,16.481,0.96]
[1673578882437,30.46683801,16.495,16.48,10.0]
[1673578882640,30.46683801,16.495,16.481,0.96]
[1673578882850,30.46683801,16.495,16.48,10.0]
[1673578883287,0.96,16.494,16.48,10.0]
[1673578883496,1.92,16.494,16.48,10.0]
[1673578884023,11.92,16.494,16.481,0.96]
[1673578884235,11.92,16.494,16.48,0.96]
[1673578884965,11.92,16.494,16.479,126.0152]
[1673578889477,17.0,16.493,16.479,116.0152]
[1673578889696,0.96,16.492,16.479,116.0152]
[1673578889894,0.96,16.491,16.479,116.0152]
[1673578890107,0.96,16.49,16.479,116.0152]
[1673578891484,0.96,16.49,16.48,10.0]
[1673578893168,0.96,16.49,16.479,116.0152]
[1673578893382,0.96,16.489,16.479,116.0152]